bitfinex/quotes_SOLUSD_20240827
["timestamp","ask_amount","ask_price","bid_price","bid_amount"]
[1724797018195,84.27631417,146.78,146.61,50.0]
[1724797018404,84.27631417,146.78,146.57,0.25098]
[1724797018405,11.8589,146.81,146.65,55.92251417]
[1724797018714,11.8589,146.81,146.62,7.07128]
[1724797018715,1.4487302,146.88,146.68,55.92251417]
[1724797018941,1.4487302,146.88,146.71,105.92251417]
[1724797019214,1.4487302,146.88,146.72,0.25098]
[1724797019421,1.4487302,146.88,146.76,50.0]
[1724797019601,1.4487302,146.88,146.77,21.10273356]
[1724797020206,1.4487302,146.88,146.77,0.25098]
[1724797020501,55.92251417,146.81,146.65,50.0]
[1724797020704,55.92251417,146.75,146.61,17.0514]
[1724797020915,1.4487302,146.88,146.68,50.0]
[1724797021114,1.4487302,146.88,146.73,50.0]
[1724797021305,1.4487302,146.88,146.74,20.51842022]
[1724797021513,1.4487302,146.88,146.68,10.73187478]
[1724797021708,1.4487302,146.88,146.63,60.73187478]
[1724797022101,11.7678,146.83,146.64,10.73187478]
[1724797022324,51.61844314,146.82,146.66,50.0]
[1724797022497,1.4487302,146.88,146.68,101.61844314]
[1724797022696,1.4487302,146.88,146.74,51.61844314]
[1724797022897,53.06717334,146.88,146.76,50.0]
[1724797023101,1.4487302,146.88,146.75,10.73187478]
[1724797023309,51.61844314,146.85,146.68,101.61844314]
[1724797023622,1.4487302,146.88,146.74,101.61844314]
[1724797024005,1.4487302,146.88,146.8,51.61844314]
[1724797024210,1.4487302,146.88,146.8,10.65170811]
[1724797024517,1.3232402,146.88,146.85,50.0]
[1724797024823,1.1977502,146.88,146.87,50.0]
[1724797025004,1.4487302,147.14,146.89,50.0]
[1724797025315,1.4487302,147.14,146.86,62.39564125]
[1724797025316,53.06717334,147.14,146.92,101.61844314]
[1724797025517,51.61844314,147.12,146.96,50.0]
[1724797025720,1.4487302,147.14,147.02,51.61844314]
[1724797025897,1.4487302,147.14,147.04,50.0]
[1724797026094,1.4487302,147.14,147.08,101.61844314]
[1724797026320,1.4487302,147.14,147.08,51.61844314]
[1724797026494,1.4487302,147.14,147.06,50.0]
[1724797026699,1.4487302,147.14,147.07,0.12549]
[1724797026900,1.4487302,147.14,147.07,0.25098]
[1724797027539,1.4487302,147.14,147.06,51.86942314]
[1724797028015,1.4487302,147.14,147.06,0.12549]
[1724797028812,1.4487302,147.14,147.0,50.0]
[1724797029014,1.4487302,147.14,147.02,51.61844314]
[1724797029397,1.4487302,147.14,147.06,50.0]
[1724797029609,1.4487302,147.14,147.08,51.61844314]
[1724797030002,1.4487302,147.14,147.08,60.67516742]
[1724797030209,1.4487302,147.14,147.0,50.0]
[1724797030425,1.4487302,147.14,147.04,50.0]
[1724797030725,1.4487302,147.14,147.05,101.61844314]
[1724797031021,1.1977502,147.14,147.12,56.7968]
[1724797031323,10.5082,147.3,147.12,65.85352428]
[1724797031507,10.5082,147.3,147.18,50.0]
[1724797031822,10.5082,147.3,147.2,51.61844314]
[1724797032029,51.61844314,147.29,147.14,51.61844314]
[1724797032194,51.61844314,147.26,147.11,50.0]
[1724797032402,10.5082,147.3,147.15,50.0]
[1724797032611,11.1599134,147.3,147.14,51.61844314]
[1724797032909,11.1599134,147.3,147.17,51.61844314]
[1724797033105,51.61844314,147.25,147.12,50.0]
[1724797033323,51.61844314,147.28,147.13,51.61844314]
[1724797033522,11.1599134,147.3,147.13,51.61844314]
[1724797033700,51.61844314,147.28,147.13,51.61844314]
[1724797033905,51.61844314,147.28,147.1,51.61844314]
[1724797034098,51.61844314,147.28,147.12,50.0]
[1724797034311,51.61844314,147.28,147.13,51.61844314]
[1724797034508,51.61844314,147.22,147.07,51.61844314]
[1724797035017,51.61844314,147.25,147.08,50.0]
[1724797035221,11.1599134,147.3,147.15,51.61844314]
[1724797035521,11.1599134,147.3,147.12,50.0]
[1724797035705,11.1599134,147.3,147.1,9.05672428]
[1724797035909,51.61844314,147.28,147.13,51.61844314]
[1724797036115,11.1599134,147.3,147.16,51.61844314]
[1724797036423,51.61844314,147.29,147.13,101.61844314]
[1724797036606,11.1599134,147.3,147.13,101.61844314]
[1724797036607,0.6517134,147.3,147.24,51.61844314]
[1724797036813,0.6517134,147.3,147.25,0.12549]
[1724797037115,0.6517134,147.3,147.27,51.61844314]
[1724797037418,0.6517134,147.3,147.28,0.25098]
[1724797037811,0.5262234,147.3,147.28,0.25098]
[1724797038120,0.5262234,147.3,147.28,51.86942314]
[1724797038317,51.61844314,147.48,147.31,51.61844314]
[1724797038517,51.61844314,147.36,147.19,50.0]
[1724797038701,51.61844314,147.33,147.16,51.61844314]
[1724797038902,51.61844314,147.33,147.19,51.61844314]
[1724797039223,10.7186,147.38,147.31,51.61844314]
[1724797039413,10.7186,147.38,147.25,51.61844314]
[1724797039611,51.61844314,147.35,147.19,51.61844314]
[1724797040115,62.33704314,147.38,147.22,51.61844314]
[1724797040305,10.7186,147.38,147.25,51.61844314]
[1724797040505,10.7186,147.38,147.26,0.12549]
[1724797040708,51.61844314,147.33,147.14,16.9897]
[1724797040907,51.61844314,147.35,147.19,51.61844314]
[1724797041106,51.61844314,147.28,147.13,51.61844314]
[1724797041314,27.8364,147.3,147.06,50.0]
[1724797041616,51.61844314,147.26,147.1,51.61844314]
[1724797041817,51.61844314,147.19,147.04,17.001]
[1724797042022,51.61844314,147.13,146.96,51.61844314]
[1724797042424,51.61844314,147.14,146.99,101.61844314]
[1724797042636,51.61844314,147.17,146.99,60.15948555]
[1724797042806,10.3755,147.2,147.07,51.61844314]
[1724797043002,51.61844314,147.1,147.0,8.54104241]
[1724797043227,10.3755,147.2,147.0,50.0]
[1724797043524,51.61844314,147.16,146.99,101.61844314]
[1724797043703,51.61844314,147.13,146.94,51.61844314]
[1724797043911,51.61844314,147.1,146.95,50.0]
[1724797044212,51.61844314,147.02,146.88,50.0]
[1724797044424,51.61844314,147.02,146.8,10.5725]
[1724797044425,51.61844314,146.99,146.82,101.61844314]
[1724797044628,51.61844314,146.96,146.79,51.61844314]
[1724797044812,10.8979,147.01,146.87,51.61844314]
[1724797045009,62.51634314,147.01,146.84,51.61844314]
[1724797045419,51.61844314,146.95,146.78,51.61844314]
[1724797045718,51.61844314,146.92,146.75,51.61844314]
[1724797045911,51.61844314,146.95,146.77,51.61844314]
[1724797046122,10.8979,147.01,146.87,51.61844314]
[1724797046425,51.61844314,146.96,146.85,8.40887574]
[1724797046625,51.61844314,146.93,146.75,51.61844314]
[1724797046927,51.61844314,147.0,146.81,51.61844314]
[1724797047226,10.8979,147.01,146.84,51.61844314]
[1724797047608,10.8979,147.01,146.87,51.61844314]
[1724797047808,51.61844314,146.99,146.81,51.61844314]
[1724797048331,10.8979,147.01,146.91,51.61844314]
[1724797048914,10.8979,147.01,146.88,51.61844314]
[1724797049114,39.21,147.11,146.97,51.61844314]
[1724797049321,39.21,147.11,146.94,51.61844314]
[1724797049322,39.21,147.11,147.0,51.61844314]
[1724797049525,11.2778,147.2,147.03,51.61844314]
[1724797049716,11.2778,147.2,147.04,45.25098]
[1724797049922,11.2778,147.2,147.04,45.0]
[1724797049923,51.61844314,147.16,147.04,45.0]
[1724797050120,11.2778,147.2,147.05,51.61844314]
[1724797050320,51.61844314,147.13,147.04,45.0]
[1724797050525,51.61844314,147.16,147.05,0.12549]
[1724797050833,51.61844314,147.13,146.96,51.61844314]
[1724797051136,51.61844314,147.16,146.99,51.61844314]
[1724797051310,51.61844314,147.19,147.02,51.61844314]
[1724797051511,51.61844314,147.16,147.03,45.25098]
[1724797051830,11.2778,147.2,147.04,96.74393314]
[1724797052029,11.2778,147.2,147.07,51.61844314]
[1724797052232,11.2778,147.2,147.1,51.61844314]
[1724797052537,11.2778,147.2,147.11,45.0]
[1724797052718,51.61844314,147.19,147.08,45.0]
[1724797052916,11.2778,147.2,147.08,45.0]
[1724797052917,51.61844314,147.16,147.08,45.0]
[1724797053128,51.61844314,147.16,147.0,108.42064314]
[1724797053326,11.2778,147.2,147.06,101.61844314]
[1724797053623,51.61844314,147.18,147.07,0.12549]
[1724797054034,11.2778,147.2,147.09,51.61844314]
[1724797054209,11.2778,147.2,147.1,0.12549]
[1724797054624,11.2778,147.2,147.03,51.61844314]
[1724797054807,11.2778,147.2,147.04,0.12549]
[1724797055126,11.2778,147.2,147.09,51.61844314]
[1724797055328,11.2778,147.2,147.1,45.12549]
[1724797055927,62.37584314,147.28,147.11,0.12549]
[1724797056127,51.61844314,147.16,147.0,50.0]
[1724797056330,51.61844314,147.1,146.92,101.61844314]
[1724797056530,51.61844314,147.14,146.95,51.61844314]
[1724797056731,51.61844314,147.11,146.95,51.61844314]
[1724797056933,51.61844314,147.05,146.92,8.7532307]
[1724797057117,51.61844314,146.99,146.82,108.42914314]
[1724797057320,51.61844314,146.96,146.8,50.0]
[1724797057644,51.61844314,146.93,146.82,1.55681398]
[1724797057838,51.61844314,146.93,146.79,50.0]
[1724797058034,51.61844314,146.93,146.75,8.7532307]
[1724797058035,51.61844314,146.9,146.75,8.7532307]
[1724797058337,51.61844314,146.84,146.7,8.7532307]
[1724797058517,51.61844314,146.77,146.73,6.79157462]
[1724797058714,51.61844314,146.8,146.64,50.0]
[1724797058914,51.61844314,146.8,146.64,101.61844314]
[1724797059216,51.61844314,146.83,146.64,101.61844314]
[1724797059430,51.61844314,146.86,146.67,51.61844314]
[1724797059837,51.61844314,146.86,146.7,51.61844314]
[1724797060040,90.47584314,146.93,146.73,51.61844314]
[1724797060339,51.61844314,146.86,146.72,51.61844314]
[1724797060517,51.61844314,146.83,146.65,51.61844314]
[1724797060926,51.61844314,146.8,146.63,6.79521854]
[1724797061131,51.61844314,146.8,146.65,51.61844314]
[1724797061532,51.61844314,146.86,146.68,51.61844314]
[1724797061727,51.61844314,146.83,146.63,6.79521854]
[1724797061932,38.8574,146.93,146.71,51.61844314]
[1724797062140,51.61844314,146.9,146.74,51.61844314]
[1724797062428,51.61844314,146.84,146.68,51.61844314]
[1724797062635,51.61844314,146.87,146.71,51.61844314]
[1724797063149,51.61844314,146.87,146.72,45.12549]
[1724797063447,90.47584314,146.93,146.74,51.61844314]
[1724797063635,51.61844314,146.88,146.75,45.0]
[1724797063822,51.61844314,146.88,146.72,45.12549]
[1724797064024,51.61844314,146.88,146.73,0.12549]
[1724797064234,38.8574,146.93,146.77,51.61844314]
[1724797064430,38.8574,146.93,146.8,51.61844314]
[1724797064742,10.7574,146.93,146.81,45.25098]
[1724797065446,27.927,147.04,146.85,51.61844314]
[1724797065447,51.61844314,147.01,146.85,51.61844314]
[1724797065653,51.61844314,147.01,146.86,0.25098]
[1724797065832,51.61844314,146.95,146.76,51.61844314]
[1724797066034,51.61844314,146.92,146.77,0.12549]
[1724797066226,51.61844314,147.0,146.79,101.61844314]
[1724797066432,51.61844314,147.0,146.85,51.61844314]
[1724797066646,10.7473,147.02,146.86,0.12549]
[1724797067143,51.61844314,147.0,146.86,0.12549]
[1724797067351,10.7473,147.02,146.91,51.61844314]
[1724797067528,10.7473,147.02,146.92,45.25098]
[1724797067945,10.7473,147.02,146.92,45.12549]
[1724797068244,10.7473,147.02,146.93,0.12549]
[1724797068448,27.927,147.04,146.93,0.25098]
[1724797068953,51.61844314,147.07,146.93,0.25098]
[1724797069355,51.61844314,147.07,146.93,0.12549]
[1724797069556,51.61844314,147.04,146.88,51.61844314]
[1724797069853,51.61844314,147.01,146.85,51.61844314]
[1724797070049,51.61844314,147.04,146.88,58.42644314]
[1724797070242,51.61844314,147.07,146.88,51.61844314]
[1724797070544,51.61844314,146.99,146.83,17.0264]
[1724797070748,51.61844314,146.99,146.83,23.8365]
[1724797070953,51.61844314,147.07,146.88,51.61844314]
[1724797071251,51.61844314,147.1,146.91,51.61844314]
[1724797071556,10.357,147.11,146.94,51.61844314]
[1724797071753,51.61844314,147.02,146.88,51.61844314]
[1724797071933,61.97544314,147.11,146.94,51.61844314]
[1724797072253,61.97544314,147.11,146.95,0.25098]
[1724797072753,51.61844314,147.08,146.95,0.25098]
[1724797072945,51.61844314,147.01,146.85,17.0233]
[1724797073253,51.61844314,147.07,146.89,51.61844314]
[1724797073452,51.61844314,147.07,146.92,51.61844314]
[1724797073636,51.61844314,147.1,146.92,51.61844314]
[1724797073836,51.61844314,147.07,146.92,51.61844314]
[1724797074033,51.61844314,147.1,146.92,58.42464314]
[1724797074251,10.357,147.11,146.95,51.61844314]
[1724797074550,10.357,147.11,146.98,51.61844314]
[1724797074754,10.357,147.11,146.96,0.12549]
[1724797074755,61.97544314,147.11,146.96,0.12549]
[1724797074931,51.61844314,147.08,146.96,0.12549]
[1724797075261,51.61844314,147.08,146.93,0.12549]
[1724797075458,51.61844314,147.08,146.93,51.74393314]
[1724797075640,10.357,147.11,146.96,51.61844314]
[1724797075847,10.357,147.11,146.97,0.12549]
[1724797076363,10.5301,147.21,147.08,51.61844314]
[1724797076531,51.61844314,147.3,147.05,50.0]
[1724797076734,10.5301,147.32,147.12,51.61844314]
[1724797076935,10.5301,147.32,147.13,45.25098]
[1724797076936,51.61844314,147.27,147.13,45.25098]
[1724797077157,10.5301,147.32,147.13,45.25098]
[1724797077158,51.61844314,147.24,147.13,45.12549]
[1724797077368,51.61844314,147.18,147.04,6.8007]
[1724797077536,51.61844314,147.18,147.05,45.25098]
[1724797077864,51.61844314,147.28,147.05,45.25098]
[1724797078160,51.61844314,147.28,147.0,50.0]
[1724797078161,51.61844314,147.15,147.0,51.61844314]
[1724797078534,51.61844314,147.15,147.01,45.0]
[1724797078731,51.61844314,147.15,146.97,51.61844314]
[1724797078951,51.61844314,147.12,146.96,17.0107]
[1724797079273,51.61844314,147.09,146.91,51.61844314]
[1724797079450,51.61844314,147.06,146.87,60.7831]
[1724797079761,51.61844314,147.03,146.88,6.8079]
[1724797079966,51.61844314,147.09,146.92,51.61844314]
[1724797080138,51.61844314,147.12,146.95,51.61844314]
[1724797080335,61.97884314,147.14,146.93,101.61844314]
[1724797080534,51.61844314,147.05,146.9,51.61844314]
[1724797080758,51.61844314,147.05,146.86,101.61844314]
[1724797080958,51.61844314,146.99,146.83,68.64434314]
[1724797081164,51.61844314,146.96,146.78,58.43094314]
[1724797081347,51.61844314,147.0,146.81,108.27308852]
[1724797081551,51.61844314,147.0,146.84,51.61844314]
[1724797081750,51.61844314,147.04,146.87,51.61844314]
[1724797081970,51.61844314,147.04,146.89,51.61844314]
[1724797082139,51.61844314,147.07,146.92,51.61844314]
[1724797082471,51.61844314,147.07,146.79,51.61844314]
[1724797082472,51.61844314,146.95,146.79,51.61844314]
[1724797082648,51.61844314,146.92,146.76,51.61844314]
[1724797083047,51.61844314,146.92,146.73,50.0]
[1724797083247,51.61844314,146.92,146.77,50.0]
[1724797083456,9.8013,147.07,146.85,51.61844314]
[1724797083670,51.61844314,147.02,146.85,51.61844314]
[1724797084071,51.61844314,147.05,146.88,51.61844314]
[1724797084247,51.61844314,147.05,146.86,50.0]
[1724797084248,9.8013,147.07,146.94,51.61844314]
[1724797084445,9.8013,147.07,146.91,51.61844314]
[1724797084773,51.61844314,147.15,146.98,51.61844314]
[1724797084971,10.4662,147.17,147.04,51.61844314]
[1724797085144,10.4662,147.25,147.1,51.61844314]
[1724797085339,62.08464314,147.25,147.11,0.12549]
[1724797085666,51.61844314,147.28,147.11,0.12549]
[1724797085850,51.80822377,147.28,147.14,6.7961]
[1724797086050,51.80822377,147.28,147.15,45.25098]
[1724797086051,0.18978063,147.28,147.15,45.25098]
[1724797086256,0.18978063,147.28,147.27,51.61844314]
[1724797086452,0.18978063,147.28,147.27,45.25098]
[1724797086646,51.61844314,147.36,147.19,16.984]
[1724797086851,79.14564314,147.42,147.24,51.61844314]
[1724797087045,79.14564314,147.42,147.25,45.25098]
[1724797087251,51.61844314,147.37,147.25,45.25098]
[1724797087546,0.18978063,147.28,147.25,45.12549]
[1724797088049,0.18978063,147.28,147.26,0.12549]
[1724797088249,0.18978063,147.28,147.25,45.12549]
[1724797088967,103.42666691,147.28,147.08,50.0]
[1724797089170,51.61844314,147.24,147.1,50.0]
[1724797089347,51.61844314,147.21,147.04,51.61844314]
[1724797089669,51.80822377,147.28,147.04,51.61844314]
[1724797089670,51.61844314,147.24,147.07,51.61844314]
[1724797089872,51.61844314,147.22,147.04,51.61844314]
[1724797090045,51.61844314,147.16,147.0,101.61844314]
[1724797090250,51.61844314,147.16,147.0,61.20856762]
[1724797090550,51.61844314,147.07,146.9,51.61844314]
[1724797090749,51.61844314,147.07,146.9,101.61844314]
[1724797090945,51.61844314,147.07,146.91,9.59012448]
[1724797091173,51.61844314,147.07,146.9,51.61844314]
[1724797091358,51.61844314,147.07,146.91,9.59012448]
[1724797091559,62.13374314,147.1,146.93,51.61844314]
[1724797091747,9.906,147.2,147.06,51.61844314]
[1724797091947,51.61844314,147.18,147.03,101.61844314]
[1724797092148,9.906,147.2,147.03,51.61844314]
[1724797092366,9.906,147.2,147.06,51.61844314]
[1724797092554,51.61844314,147.18,147.0,51.61844314]
[1724797092866,51.61844314,147.12,146.93,51.61844314]
[1724797093075,51.61844314,147.12,146.94,9.59012448]
[1724797093268,51.61844314,147.14,146.94,9.59012448]
[1724797093269,51.61844314,147.14,146.94,26.60352448]
[1724797093463,51.61844314,147.14,146.99,51.61844314]
[1724797094064,9.906,147.2,147.02,51.61844314]
[1724797094377,9.906,147.2,146.94,26.60352448]
[1724797094378,51.61844314,147.15,146.99,61.20856762]
[1724797094674,9.906,147.2,147.02,51.61844314]
[1724797094863,51.61844314,147.18,147.03,45.0]
[1724797095189,51.61844314,147.18,147.0,96.61844314]
[1724797095382,51.61844314,147.18,147.01,20.25098]
[1724797095688,9.906,147.2,147.04,51.61844314]
[1724797095863,9.906,147.2,147.07,51.61844314]
[1724797096060,51.61844314,147.18,147.02,54.59012448]
[1724797096262,51.61844314,147.15,147.02,45.0]
[1724797096481,51.61844314,147.18,147.02,45.0]
[1724797096783,0.1592268,147.21,147.15,51.61844314]
[1724797096988,0.1592268,147.21,147.19,51.61844314]
[1724797097162,0.1592268,147.21,147.19,61.20856762]
[1724797097478,0.1592268,147.21,147.2,45.0]
[1724797097779,0.1592268,147.21,147.16,51.61844314]
[1724797098081,0.1592268,147.21,147.02,50.0]
[1724797098261,0.1592268,147.21,147.08,45.0]
[1724797098585,0.1592268,147.21,147.04,67.0015]
[1724797098786,0.1592268,147.21,147.04,23.8021]
[1724797098962,51.61844314,147.17,147.0,51.61844314]
[1724797099165,51.61844314,147.14,146.97,51.61844314]
[1724797099482,51.61844314,147.17,147.0,51.61844314]
[1724797099658,0.12549,147.18,147.0,51.61844314]
[1724797099858,51.61844314,147.17,147.0,51.61844314]
[1724797100080,0.25098,147.19,147.0,51.61844314]
[1724797100285,51.61844314,147.14,146.94,26.60332448]
[1724797100472,51.61844314,147.11,146.94,9.59012448]
[1724797100785,51.61844314,147.17,146.98,51.61844314]
[1724797100986,51.61844314,147.17,147.01,51.61844314]
[1724797101176,51.61844314,147.14,146.99,9.59012448]
[1724797101379,51.61844314,147.11,146.93,68.63254314]
[1724797101585,45.12549,147.16,146.96,51.61844314]
[1724797101586,51.61844314,147.14,146.96,51.61844314]
[1724797102084,51.61844314,147.08,146.93,51.61844314]
[1724797102286,51.61844314,147.05,146.9,51.61844314]
[1724797102583,51.61844314,146.99,146.85,6.61428768]
[1724797102786,10.5656,147.03,146.78,67.0319]
[1724797102787,51.61844314,146.96,146.78,17.0319]
[1724797102991,51.61844314,147.0,146.79,108.1670591]
[1724797103166,10.5656,147.03,146.88,51.61844314]
[1724797103576,10.5656,147.03,146.86,101.61844314]
[1724797103577,51.61844314,147.09,146.94,51.61844314]
[1724797103782,51.61844314,147.06,146.86,125.44994314]
[1724797103978,51.61844314,147.06,146.89,101.61844314]
[1724797104195,51.61844314,147.09,146.92,51.61844314]
[1724797104482,51.61844314,147.09,146.9,50.0]
[1724797104688,51.61844314,147.09,146.86,51.61844314]
[1724797104689,51.61844314,147.09,146.94,51.61844314]
[1724797105079,51.61844314,147.03,146.86,51.61844314]
[1724797105260,51.61844314,147.03,146.88,50.0]
[1724797105461,51.61844314,147.07,146.89,51.61844314]
[1724797105665,9.8195,147.2,147.02,51.61844314]
[1724797105863,9.8195,147.2,147.0,8.12329115]
[1724797106175,51.61844314,147.08,146.92,51.61844314]
[1724797106390,9.8195,147.2,146.93,50.0]
[1724797106588,9.8195,147.2,146.97,50.0]
[1724797106589,51.61844314,147.13,146.97,50.0]
[1724797106880,51.61844314,147.06,146.89,59.8552]
[1724797107083,51.61844314,147.06,146.9,70.0]
[1724797107299,31.85323556,147.18,146.96,50.0]
[1724797107588,51.61844314,147.12,146.96,50.0]
[1724797107789,51.61844314,147.15,146.98,50.0]
[1724797107991,51.61844314,147.13,146.93,51.61844314]
[1724797108200,24.5141,147.18,146.92,50.0]
[1724797108201,51.61844314,147.07,146.92,50.0]
[1724797108571,24.5141,147.18,146.95,101.61844314]
[1724797108772,51.61844314,147.13,146.96,50.0]
[1724797108980,51.61844314,147.13,146.85,33.2551288]
[1724797108981,51.61844314,147.07,146.89,51.61844314]
[1724797109491,51.61844314,147.07,146.91,101.61844314]
[1724797109676,51.61844314,147.07,146.91,51.61844314]
[1724797109885,51.61844314,147.07,146.9,8.17999205]
[1724797110076,51.61844314,147.07,146.91,109.79843519]
[1724797110272,51.61844314,147.04,146.86,50.0]
[1724797110590,51.61844314,147.07,146.89,51.61844314]
[1724797110794,20.0,147.06,146.89,59.79843519]
[1724797111093,51.61844314,147.11,146.95,51.61844314]
[1724797111293,51.61844314,147.08,146.92,101.61844314]
[1724797111491,51.61844314,147.05,146.9,8.17999205]
[1724797111677,51.61844314,147.02,146.9,8.17999205]
[1724797111882,51.61844314,147.02,146.88,50.0]
[1724797112088,51.61844314,147.07,146.88,58.17999205]
[1724797112280,51.61844314,147.07,146.91,51.61844314]
[1724797112480,51.61844314,147.07,146.88,51.61844314]
[1724797112733,51.61844314,147.14,146.94,101.61844314]
[1724797112880,51.61844314,147.14,146.97,51.61844314]
[1724797113199,51.61844314,147.17,147.0,51.61844314]
[1724797113402,9.8195,147.2,147.06,51.61844314]
[1724797113696,9.8195,147.2,147.07,45.12549]
[1724797113899,9.8195,147.2,147.08,0.12549]
[1724797114099,0.1592268,147.21,147.09,51.61844314]
[1724797114277,0.1592268,147.21,147.1,45.25098]
[1724797114806,0.1592268,147.21,147.1,45.12549]
[1724797115181,0.1592268,147.21,147.11,0.12549]
[1724797115573,0.1592268,147.21,147.12,51.61844314]
[1724797115775,0.1592268,147.21,147.13,45.25098]
[1724797116296,51.61844314,147.2,147.06,50.0]
[1724797116496,0.1592268,147.21,147.06,51.61844314]
[1724797117087,0.1592268,147.21,147.06,101.61844314]
[1724797117293,0.1592268,147.21,147.09,51.61844314]
[1724797117483,0.1592268,147.21,147.1,45.25098]
[1724797118097,51.61844314,147.2,147.03,59.79843519]
[1724797118300,51.61844314,147.17,147.0,51.61844314]
[1724797118495,51.61844314,147.14,147.0,51.61844314]
[1724797118802,51.61844314,147.2,146.89,9.3001]
[1724797118803,51.61844314,147.11,146.95,50.0]
[1724797118991,51.61844314,147.2,146.97,50.0]
[1724797118992,51.61844314,147.14,146.97,50.0]
[1724797119190,51.61844314,147.14,146.98,51.61844314]
[1724797119396,51.61844314,147.17,146.99,50.0]
[1724797119584,51.61844314,147.2,147.01,101.61844314]
[1724797119789,20.0,147.19,147.01,51.61844314]
[1724797120003,51.61844314,147.12,146.95,8.17999205]
[1724797120240,51.61844314,147.12,146.95,101.61844314]
[1724797120408,51.61844314,147.09,146.92,51.61844314]
[1724797120577,51.61844314,147.09,146.94,50.0]
[1724797120904,51.61844314,147.09,146.92,109.79843519]
[1724797121280,20.0,147.19,146.92,109.79843519]
[1724797121281,51.61844314,147.12,146.96,50.0]
[1724797121482,51.61844314,147.15,146.98,51.61844314]
[1724797121687,51.61844314,147.15,146.96,50.0]
[1724797121688,51.61844314,147.15,147.01,51.61844314]
[1724797121888,0.1592268,147.21,147.01,51.61844314]
[1724797122103,51.61844314,147.2,147.02,8.17999205]
[1724797122707,51.61844314,147.2,147.03,0.12549]
[1724797122910,51.61844314,147.14,147.03,0.12549]
[1724797123101,51.61844314,147.11,146.94,108.42364314]
[1724797123404,51.61844314,147.14,146.95,8.17999205]
[1724797123781,51.61844314,147.14,146.96,50.0]
[1724797123984,51.61844314,147.14,146.97,51.61844314]
[1724797124183,51.61844314,147.14,146.97,66.60233519]
[1724797124410,51.77766994,147.21,147.03,51.61844314]
[1724797124983,51.77766994,147.21,147.04,45.12549]
[1724797125224,0.1592268,147.21,147.06,51.61844314]
[1724797125384,35.5394,146.96,146.57,34.96439591]
[1724797125587,50.0,146.73,146.48,10.1011]
[1724797125812,1.08783785,146.75,146.48,10.1011]
[1724797126116,1.08783785,146.75,146.49,50.0]
[1724797126313,1.08783785,146.75,146.49,8.55738082]
[1724797126611,4.999999,146.74,146.57,51.61844314]
[1724797126995,51.61844314,146.72,146.56,50.0]
[1724797127194,51.61844314,146.72,146.56,58.27129812]
[1724797127396,1.08783785,146.75,146.66,51.61844314]
[1724797127694,1.08783785,146.75,146.69,51.61844314]
[1724797127910,1.08783785,146.75,146.66,50.0]
[1724797128092,1.08783785,146.75,146.68,51.61844314]
[1724797128408,1.08783785,146.75,146.7,51.61844314]
[1724797128707,1.08783785,146.75,146.73,51.61844314]
[1724797128913,1.08783785,146.75,146.74,45.25098]
[1724797129289,24.0109,147.02,146.74,95.25098]
[1724797129489,24.0109,147.02,146.8,51.61844314]
[1724797129490,51.61844314,147.0,146.8,51.61844314]
[1724797129712,51.61844314,147.0,146.81,45.25098]
[1724797130096,51.61844314,146.94,146.81,45.12549]
[1724797130292,51.61844314,146.94,146.81,0.12549]
[1724797130919,51.61844314,147.0,146.81,0.25098]
[1724797131108,51.61844314,147.0,146.81,45.25098]
[1724797131824,51.61844314,147.0,146.83,51.61844314]
[1724797132009,51.61844314,146.97,146.84,0.12549]
[1724797132198,85.44524314,147.14,146.81,45.25098]
[1724797132199,51.61844314,146.94,146.81,45.25098]
[1724797132513,51.61844314,146.91,146.7,9.4047]
[1724797132694,54.15664807,146.93,146.7,9.4047]
[1724797132894,51.61844314,146.82,146.7,9.4047]
[1724797133101,51.61844314,146.86,146.7,9.4047]
[1724797133301,65.12549,146.85,146.7,9.4047]
[1724797133603,51.61844314,146.86,146.7,9.4047]
[1724797133811,51.61844314,146.86,146.7,59.4047]
[1724797134012,51.61844314,146.86,146.7,9.4047]
[1724797134228,51.61844314,146.86,146.7,59.4047]
[1724797134403,51.61844314,146.89,146.72,51.61844314]
[1724797134595,51.61844314,146.89,146.72,101.61844314]
[1724797134803,51.61844314,146.92,146.74,50.0]
[1724797135002,51.61844314,146.92,146.75,96.86942314]
[1724797135209,51.61844314,146.92,146.76,50.0]
[1724797135436,51.61844314,146.92,146.77,45.25098]
[1724797135719,51.61844314,146.93,146.78,45.12549]
[1724797135922,51.61844314,146.93,146.77,0.12549]
[1724797136105,51.61844314,146.89,146.75,45.12549]
[1724797136299,51.61844314,146.89,146.76,45.12549]